bitfinex-derivatives/quotes_SOLF0:USTF0_20241120
["timestamp","ask_amount","ask_price","bid_price","bid_amount"]
[1732107183052,9.81818614,236.51,236.34,4.2107]
[1732107183053,2.96,236.5,236.34,4.2107]
[1732107183248,9.81818614,236.49,236.34,4.2107]
[1732107183450,9.81818614,236.49,236.34,1.2507]
[1732107183647,9.81818614,236.49,236.33,2.4804]
[1732107184549,1.2948,236.52,236.36,16.47589463]
[1732107184746,2.96,236.51,236.36,19.43589463]
[1732107184951,9.81818614,236.5,236.37,1.3002]
[1732107185145,9.81818614,236.5,236.44,16.47589463]
[1732107185347,1.294,236.59,236.44,16.47589463]
[1732107185560,2.74094,236.57,236.52,2.1116]
[1732107185749,9.8195196,236.56,236.52,2.1116]
[1732107185952,9.8195196,236.56,236.48,16.47589463]
[1732107186155,0.62964,236.57,236.48,16.47589463]
[1732107186456,0.62964,236.57,236.49,3.7432]
[1732107187251,0.62964,236.57,236.52,16.47589463]
[1732107188860,0.62964,236.57,236.56,2.1114]
[1732107189758,2.1106,236.65,236.58,2.1111]
[1732107189759,9.81307153,236.64,236.58,2.1111]
[1732107189960,2.1106,236.65,236.58,2.1111]
[1732107190252,9.81416091,236.66,236.56,2.1113]
[1732107190454,9.81416091,236.65,236.52,16.47589463]
[1732107191054,16.47589463,236.68,236.49,3.7432]
[1732107191255,9.8123198,236.67,236.5,2.96]
[1732107191762,2.1111,236.59,236.5,2.96]
[1732107191957,9.8123198,236.67,236.5,2.96]
[1732107192152,2.1107,236.63,236.57,2.1112]
[1732107192356,2.1107,236.63,236.52,16.47589463]
[1732107192856,2.1107,236.63,236.56,2.1113]
[1732107193062,2.1106,236.65,236.52,16.47589463]
[1732107193462,2.1106,236.65,236.55,2.1114]
[1732107193662,9.81725573,236.68,236.52,16.47589463]
[1732107193960,2.1107,236.64,236.52,16.47589463]
[1732107194161,2.1107,236.64,236.57,2.1112]
[1732107194360,2.1109,236.61,236.5,2.96]
[1732107194559,26.29315036,236.68,236.49,3.7432]
[1732107194863,9.81725573,236.67,236.49,3.7432]
[1732107195754,2.1113,236.57,236.51,2.1117]
[1732107196157,9.81725573,236.67,236.49,3.7432]
[1732107196962,9.81725573,236.67,236.54,2.1115]
[1732107197963,9.81725573,236.67,236.49,3.7432]
[1732107198265,9.81725573,236.67,236.55,2.1114]
[1732107198860,9.81725573,236.67,236.49,3.7432]
[1732107199258,2.111,236.61,236.49,3.7432]
[1732107199458,9.81725573,236.67,236.6,2.111]
[1732107199658,9.81725573,236.67,236.55,2.76]
[1732107199858,2.1106,236.65,236.55,2.76]
[1732107200061,9.81725573,236.68,236.55,2.76]
[1732107200363,9.81725573,236.66,236.55,2.76]
[1732107200967,2.1106,236.65,236.55,2.76]
[1732107201561,2.1106,236.65,236.61,2.1108]
[1732107201970,11.92785573,236.65,236.61,2.1108]
[1732107202265,2.1104,236.68,236.63,2.1106]
[1732107202765,0.79257,236.69,236.65,2.1105]
[1732107202965,10.63498507,236.69,236.65,2.1105]
[1732107203165,0.79257,236.69,236.62,2.76]
[1732107203868,0.79257,236.69,236.66,2.1104]
[1732107204070,0.79257,236.69,236.62,2.76]
[1732107204569,0.79257,236.69,236.68,2.1103]
[1732107206270,0.79257,236.69,236.67,2.1104]
[1732107206467,0.79257,236.69,236.62,2.76]
[1732107206770,0.79257,236.69,236.65,2.1105]
[1732107206959,0.79257,236.69,236.62,2.76]
[1732107208565,0.79257,236.69,236.68,2.1103]
[1732107208766,1.2818,236.85,236.68,16.47589463]
[1732107208965,1.2818,236.85,236.64,16.47589463]
[1732107208966,20.57633858,236.84,236.78,2.1094]
[1732107209163,9.82291826,236.83,236.72,16.47589463]
[1732107209370,1.2194,236.89,236.73,1.2653]
[1732107209573,1.2194,236.89,236.73,2.5353]
[1732107209773,11.04231826,236.89,236.73,2.5353]
[1732107209976,9.82291826,236.88,236.73,2.5353]
[1732107210168,9.82291826,236.87,236.73,2.5353]
[1732107210472,9.82291826,236.86,236.73,2.5353]
[1732107210668,9.82291826,236.85,236.8,2.1092]
[1732107210870,1.2578,236.91,236.77,2.76]
[1732107211069,19.7165352,236.91,236.77,2.76]
[1732107211266,11.07594926,236.91,236.77,2.76]
[1732107211471,9.81814926,236.9,236.77,2.76]
[1732107211669,9.81814926,236.89,236.77,2.76]
[1732107212076,9.81814926,236.88,236.77,2.76]
[1732107212475,11.92674926,236.88,236.79,2.1093]
[1732107212676,9.81814926,236.87,236.77,2.76]
[1732107213179,2.1085,236.89,236.77,2.76]
[1732107213478,9.80564921,236.9,236.77,2.76]
[1732107213782,9.80564921,236.95,236.8,16.47589463]
[1732107214081,9.80857186,236.94,236.8,16.47589463]
[1732107214275,2.1082,236.92,236.85,2.1088]
[1732107214880,2.1082,236.92,236.8,16.47589463]
[1732107215080,2.1081,236.93,236.86,2.1087]
[1732107215276,9.80364896,236.97,236.8,16.47589463]
[1732107215582,2.4818,236.98,236.89,2.1084]
[1732107215880,2.1078,236.96,236.89,2.1084]
[1732107216272,3.9651,236.99,236.84,19.23589463]
[1732107216473,2.1077,236.97,236.84,19.23589463]
[1732107216679,2.1077,236.97,236.85,1.1944]
[1732107216881,2.1077,236.97,236.91,2.1082]
[1732107217083,3.9651,236.99,236.85,1.1944]
[1732107217277,3.9651,236.99,236.87,2.1085]
[1732107217479,3.9651,236.99,236.85,1.1944]
[1732107217678,2.108,236.94,236.85,1.1944]
[1732107218176,2.1081,236.93,236.87,2.1086]
[1732107218578,3.9651,236.99,236.83,2.1089]
[1732107218779,16.47589463,236.96,236.82,2.76]
[1732107219281,2.1085,236.89,236.83,2.1089]
[1732107219479,16.47589463,236.96,236.83,2.1089]
[1732107219884,16.47589463,236.96,236.81,2.1091]
[1732107220287,16.47589463,236.96,236.78,4.0299]
[1732107220582,3.9651,236.99,236.78,4.0299]
[1732107220880,9.76961277,236.98,236.78,4.0299]
[1732107221381,2.1087,236.87,236.82,2.109]
[1732107221582,2.76,236.92,236.77,2.76]
[1732107221783,2.76,236.92,236.78,2.1093]
[1732107221784,2.1089,236.84,236.78,2.1093]
[1732107222184,2.612,236.91,236.77,2.76]
[1732107222379,2.612,236.91,236.74,1.2378]
[1732107222581,2.1087,236.86,236.76,2.1095]
[1732107222782,2.612,236.91,236.74,1.2378]
[1732107223186,9.76612636,236.9,236.77,2.1095]
[1732107223385,2.612,236.91,236.77,2.1095]
[1732107223889,2.109,236.83,236.77,2.1095]
[1732107224088,2.612,236.91,236.74,1.2378]
[1732107224291,2.1088,236.85,236.76,16.47589463]
[1732107225193,2.612,236.91,236.76,16.47589463]
[1732107226088,9.77105775,236.9,236.66,1.2638]
[1732107226395,9.77105775,236.9,236.69,16.47589463]
[1732107226589,2.1089,236.84,236.77,2.1095]
[1732107226791,2.1089,236.84,236.67,2.64]
[1732107226792,10.26728763,236.89,236.73,10.26728763]
[1732107226991,9.77105775,236.88,236.73,10.26728763]
[1732107227292,11.05785775,236.88,236.73,10.26728763]
[1732107227496,2.1091,236.82,236.76,2.1095]
[1732107227793,1.2868,236.88,236.73,10.26728763]
[1732107228189,2.612,236.91,236.79,10.26728763]
[1732107229290,2.612,236.91,236.83,10.26728763]
[1732107229697,2.64,236.96,236.78,2.64]
[1732107229998,2.64,236.96,236.85,10.26728763]
[1732107230400,2.1082,236.92,236.85,10.26728763]
[1732107230695,2.64,236.96,236.84,2.64]
[1732107230894,2.5164,236.97,236.84,2.64]
[1732107231491,2.1081,236.93,236.87,2.1085]
[1732107231696,2.1081,236.93,236.84,2.64]
[1732107232595,2.5164,236.97,236.84,2.64]
[1732107232996,9.80730701,236.96,236.84,2.64]
[1732107233796,2.1084,236.9,236.85,2.1087]
[1732107234197,9.80730701,236.96,236.78,2.64]
[1732107234899,2.1085,236.88,236.78,2.64]
[1732107235595,2.1085,236.88,236.81,2.1091]
[1732107235794,2.1085,236.88,236.78,2.64]
[1732107236095,2.1086,236.87,236.78,2.64]
[1732107236294,9.81365605,236.92,236.8,2.1092]
[1732107236498,1.2721,236.91,236.77,3.761]
[1732107236693,2.1087,236.86,236.75,16.4125386]
[1732107236891,2.1087,236.86,236.81,2.109]
[1732107237799,4.7484,236.9,236.79,16.4125386]
[1732107237995,2.64,236.9,236.79,16.4125386]
[1732107238197,2.5164,236.97,236.79,16.4125386]
[1732107238392,2.1082,236.92,236.79,16.4125386]
[1732107239901,2.1082,236.92,236.87,2.1086]
[1732107240307,2.1082,236.92,236.81,2.64]
[1732107240501,12.46773279,236.96,236.88,2.1085]
[1732107240799,9.82773279,236.95,236.83,16.4125386]
[1732107241005,2.1078,236.96,236.9,2.1083]
[1732107241201,31.65797935,237.03,236.87,19.0525386]
[1732107241401,29.19607935,237.02,236.87,19.0525386]
[1732107241697,9.83834232,237.01,236.87,19.0525386]
[1732107241898,9.83834232,237.0,236.87,19.0525386]
[1732107242298,9.83834232,237.02,236.87,19.0525386]
[1732107242503,9.83834232,237.01,236.87,19.0525386]
[1732107242701,9.83834232,237.0,236.87,19.0525386]
[1732107243000,1.90226,237.04,236.91,16.4125386]
[1732107243305,1.90226,237.04,236.94,2.1079]
[1732107243503,1.90226,237.04,236.94,2.64]
[1732107243711,10.45789282,237.04,236.94,2.64]
[1732107243898,0.60616,237.04,236.94,2.64]
[1732107244102,0.60616,237.04,236.99,2.1075]
[1732107244403,10.45789282,237.04,236.99,2.1075]
[1732107244603,10.45789282,237.04,236.95,16.4125386]
[1732107244805,0.60616,237.04,236.95,16.4125386]
[1732107245707,0.60616,237.04,236.99,16.4125386]
[1732107246502,0.60616,237.04,236.95,16.4125386]
[1732107247510,0.60616,237.04,237.03,16.4125386]
[1732107247809,1.2396,237.17,237.03,16.4125386]
[1732107247810,2.64,237.15,237.03,16.4125386]
[1732107248006,29.24600723,237.14,237.03,16.4125386]
[1732107248312,18.5288491,237.13,237.03,16.4125386]
[1732107248511,9.85486222,237.12,237.07,2.1068]
[1732107248709,9.85486222,237.14,237.0,2.64]
[1732107248911,8.6746128,237.13,237.0,2.64]
[1732107249111,2.1065,237.11,237.0,2.64]
[1732107249313,9.85486222,237.12,236.99,16.4125386]
[1732107249512,9.85486222,237.11,236.99,16.4125386]
[1732107249805,9.85486222,237.1,236.99,16.4125386]
[1732107250011,9.85486222,237.14,236.99,16.4125386]
[1732107250212,29.2509983,237.13,236.99,16.4125386]
[1732107250506,29.2509983,237.13,236.98,2.62]
[1732107250507,29.2509983,237.12,237.01,2.1073]
[1732107250713,2.64,237.15,237.01,2.1073]
[1732107250714,29.2509983,237.11,237.01,2.1073]
[1732107250907,29.2509983,237.1,236.98,2.62]
[1732107251106,29.25404545,237.09,237.0,2.1074]
[1732107251308,29.25404545,237.08,236.98,2.62]
[1732107251611,2.107,237.06,236.98,2.62]
[1732107251810,9.85486222,237.06,237.01,2.1073]
[1732107252010,11.96176222,237.06,237.01,2.1073]
[1732107252208,2.1069,237.06,237.01,2.1073]
[1732107252509,20.58733014,237.11,237.01,2.1073]
[1732107252712,2.1068,237.07,236.98,12.86616544]
[1732107253013,2.1068,237.07,236.98,10.24616544]
[1732107253408,29.27356321,237.07,236.98,10.24616544]
[1732107253604,29.27356321,237.06,236.98,10.24616544]
[1732107253810,9.85486222,237.05,236.98,10.24616544]
[1732107254009,29.28249078,237.04,236.93,2.5]
[1732107254310,29.28500527,237.03,236.92,13.93346544]
[1732107254503,20.65237142,237.02,236.92,13.93346544]
[1732107254703,9.85486222,237.01,236.92,13.93346544]
[1732107254905,2.1074,237.01,236.95,2.1078]
[1732107255111,29.28719709,237.05,236.92,13.93346544]
[1732107255304,29.28719709,237.05,236.78,4.2187]
[1732107255305,2.5,237.02,236.86,10.24616544]
[1732107255507,2.1078,236.96,236.91,2.1082]
[1732107255708,29.28719709,237.01,236.89,10.24616544]
[1732107255915,2.5,236.99,236.89,10.24616544]
[1732107256109,2.1078,236.96,236.89,10.24616544]
[1732107256308,29.28719709,236.98,236.89,10.24616544]
[1732107256309,9.85486222,236.98,236.89,10.24616544]
[1732107256503,9.85486222,236.97,236.89,10.24616544]
[1732107256708,9.85486222,236.98,236.89,10.24616544]
[1732107256909,9.85486222,236.97,236.89,10.24616544]
[1732107257108,2.5,236.99,236.91,2.1082]
[1732107257109,9.85486222,236.98,236.91,2.1082]
[1732107257413,9.85486222,236.97,236.89,10.24616544]
[1732107257707,9.85486222,236.96,236.86,10.24616544]
[1732107257911,9.85486222,236.95,236.86,10.24616544]
[1732107258113,2.5,236.99,236.86,10.24616544]
[1732107258114,9.85486222,236.94,236.86,10.24616544]
[1732107258413,9.88509154,236.93,236.86,10.24616544]
[1732107258614,2.5,236.99,236.83,12.74616544]
[1732107258914,2.1081,236.93,236.83,12.74616544]
[1732107259114,2.1081,236.93,236.8,1.1885]
[1732107259115,2.5,236.93,236.8,1.1885]
[1732107259308,9.88511305,236.92,236.8,1.1885]
[1732107259812,9.88511305,236.92,236.8,3.2977]
[1732107259813,2.1087,236.86,236.8,3.2977]
[1732107260116,9.88511305,236.92,236.8,3.2977]
[1732107260307,9.88511305,236.92,236.8,2.1092]
[1732107260514,20.13127849,236.92,236.79,10.24616544]
[1732107260709,20.13127849,236.92,236.81,2.1091]
[1732107260917,2.1088,236.85,236.81,2.1091]
[1732107261110,20.13127849,236.92,236.76,10.24616544]
[1732107261111,2.5,236.87,236.76,10.24616544]
[1732107261814,18.58632813,236.91,236.76,10.24616544]
[1732107262122,2.5,236.9,236.79,10.24616544]
[1732107262613,2.1085,236.89,236.79,10.24616544]
[1732107262918,2.5,236.9,236.82,10.24616544]
[1732107263220,2.1085,236.88,236.84,2.1088]
[1732107264120,2.1087,236.86,236.81,2.1091]
[1732107264419,2.5,236.9,236.76,10.24616544]
[1732107264716,2.1087,236.86,236.79,2.1092]
[1732107264914,2.5,236.9,236.76,10.24616544]
[1732107266213,2.5,236.9,236.81,2.1091]
[1732107266214,2.1089,236.85,236.81,2.1091]
[1732107266414,2.1089,236.85,236.76,10.24616544]
[1732107267614,2.1089,236.84,236.79,2.1092]
[1732107267821,2.5,236.9,236.76,10.24616544]
[1732107268019,2.1088,236.86,236.8,2.1092]
[1732107268219,2.5,236.9,236.8,2.1092]
[1732107268523,2.5,236.9,236.76,10.24616544]
[1732107268718,2.1088,236.86,236.81,2.1091]
[1732107268918,2.5,236.9,236.76,10.24616544]
[1732107268919,2.5,236.91,236.82,10.24616544]
[1732107269519,2.1084,236.9,236.85,2.1087]
[1732107270523,2.1085,236.88,236.84,2.1089]
[1732107270720,2.5,236.91,236.82,10.24616544]
[1732107270925,2.1083,236.91,236.86,2.1086]
[1732107271118,9.88458954,236.93,236.85,10.24616544]
[1732107271524,9.88458954,236.93,236.89,2.1084]
[1732107271823,2.108,236.94,236.89,2.1084]
[1732107272024,2.108,236.94,236.9,2.1083]
[1732107272215,11.99497458,236.95,236.9,2.1083]
[1732107272420,11.99497458,236.95,236.88,10.24616544]
[1732107272421,9.88707458,236.95,236.88,10.24616544]
[1732107272617,2.5,236.98,236.93,2.108]
[1732107272826,9.88707458,236.97,236.93,2.108]
[1732107273024,9.88707458,236.97,236.88,10.24616544]
[1732107273328,9.88707458,236.97,236.93,2.108]
[1732107273528,11.99477458,236.97,236.93,2.108]
[1732107273922,11.99477458,236.97,236.88,10.24616544]
[1732107273923,9.88707458,236.97,236.88,10.24616544]
[1732107274125,2.1078,236.96,236.88,10.24616544]
[1732107275526,2.1078,236.96,236.92,2.1081]
[1732107275921,2.1077,236.97,236.88,10.24616544]
[1732107276227,2.1077,236.97,236.92,2.1081]
[1732107276522,2.1077,236.97,236.9,2.1083]
[1732107276727,2.1077,236.97,236.88,10.24616544]
[1732107277228,2.1078,236.96,236.92,2.1081]
[1732107281628,2.1078,236.96,236.93,2.108]
[1732107282621,2.1078,236.97,236.93,2.108]
[1732107282825,9.88707458,236.98,236.93,2.108]
[1732107284232,2.1078,236.96,236.93,2.108]
[1732107284431,9.88707458,236.98,236.84,10.24616544]
[1732107284627,21.63947615,236.97,236.84,10.24616544]
[1732107284823,2.1086,236.88,236.81,10.24616544]
[1732107285030,2.1086,236.88,236.84,2.1088]
[1732107285232,2.1086,236.88,236.81,10.24616544]
[1732107285626,2.1084,236.89,236.85,2.1087]
[1732107285823,2.1084,236.89,236.81,10.24616544]
[1732107286428,9.88707458,236.91,236.81,10.24616544]
[1732107286624,11.99537458,236.91,236.84,10.24616544]
[1732107286837,2.1083,236.91,236.84,10.24616544]
[1732107287026,2.1083,236.91,236.87,2.1086]
[1732107287533,2.1083,236.91,236.84,10.24616544]
[1732107287736,2.1083,236.91,236.87,2.1085]
[1732107288029,9.90250549,236.92,236.88,10.24616544]
[1732107288235,9.90250549,236.93,236.89,2.1083]
[1732107288435,2.1078,236.96,236.88,10.24616544]
[1732107288634,20.7238268,236.96,236.88,10.24616544]
[1732107288832,9.9015588,236.95,236.92,2.1081]
[1732107289036,2.1078,236.96,236.92,2.1081]
[1732107289231,2.1079,236.95,236.88,10.24616544]
[1732107289437,2.38,236.97,236.91,2.1082]
[1732107289438,9.90049298,236.96,236.91,2.1082]
[1732107290143,2.1079,236.95,236.91,2.1082]
[1732107292437,2.108,236.94,236.91,2.1082]
[1732107293034,9.90049298,236.96,236.82,10.24616544]
[1732107293235,10.77353948,236.95,236.87,2.1086]
[1732107293532,9.90049298,236.94,236.87,2.1086]
[1732107294132,9.90049298,236.93,236.87,2.1086]
[1732107294335,9.90049298,236.92,236.87,2.1086]
[1732107294534,9.90049298,236.91,236.87,2.1086]
[1732107294735,2.38,236.97,236.87,2.1086]
[1732107294736,9.90049298,236.9,236.87,2.1086]
[1732107294936,2.1083,236.9,236.87,2.1086]
[1732107295140,2.1083,236.9,236.86,2.1087]
[1732107296331,9.91548807,236.91,236.82,10.24616544]
[1732107296531,9.91548807,236.9,236.87,2.1085]
[1732107296734,9.91548807,236.9,236.8,2.38]
[1732107296735,2.38,236.97,236.85,10.24616544]
[1732107297039,31.82329051,236.96,236.88,10.24616544]
[1732107297237,8.73218292,236.95,236.92,2.1081]
[1732107297437,9.92166879,236.95,236.88,10.24616544]
[1732107297636,9.92166879,236.94,236.88,10.24616544]
[1732107297941,9.92166879,236.93,236.88,10.24616544]
[1732107298135,2.1079,236.95,236.92,2.1082]
[1732107298435,2.1079,236.95,236.88,10.24616544]
[1732107298939,9.92896951,236.95,236.91,10.24616544]
[1732107299134,9.92896951,236.94,236.91,10.24616544]
[1732107299339,9.92896951,237.02,236.93,10.24616544]
[1732107299542,29.46753626,237.01,236.96,10.24616544]
[1732107299737,29.46753626,237.0,236.96,10.24616544]
[1732107299938,9.92971072,236.99,236.96,10.24616544]
[1732107300134,9.92971072,236.98,236.96,10.24616544]
[1732107300341,2.1071,237.04,236.99,2.1075]
[1732107300740,31.57783185,237.04,236.99,2.1075]
[1732107300945,29.47073185,237.03,237.0,2.1074]
[1732107301140,29.47073185,237.03,236.99,10.24616544]
[1732107301340,9.93076436,237.02,236.99,10.24616544]
[1732107301537,18.67120922,237.02,236.99,10.24616544]
[1732107301841,9.93076436,237.01,236.99,10.24616544]
[1732107302139,9.93076436,237.0,236.99,10.24616544]
[1732107302336,9.93076436,237.06,236.93,10.24616544]
[1732107302642,2.1072,237.04,236.98,2.1075]
[1732107302840,29.16032296,237.04,236.99,10.24616544]
[1732107303034,2.4212,237.09,236.99,10.24616544]
[1732107303035,18.66582222,237.03,236.99,10.24616544]
[1732107303344,9.93076436,237.02,237.01,2.1073]
[1732107303537,9.93076436,237.02,236.99,10.24616544]
[1732107303735,9.93076436,237.01,236.99,10.24616544]
[1732107303944,2.1068,237.08,237.03,2.1072]
[1732107304142,29.14109641,237.1,237.02,10.24616544]
[1732107304340,18.65148117,237.09,237.02,10.24616544]
[1732107304545,8.731296,237.08,237.02,10.24616544]
[1732107304739,18.65148117,237.08,237.02,10.24616544]
[1732107304939,9.92018517,237.08,237.06,2.1069]
[1732107305237,9.92018517,237.07,237.06,2.1069]
[1732107305940,2.1066,237.1,237.06,2.1069]
[1732107306143,20.74833069,237.1,237.06,2.1069]
[1732107306340,10.82814552,237.1,237.06,2.1069]
[1732107306544,10.82814552,237.1,237.0,2.5254]
[1732107306545,9.92018517,237.09,237.07,2.1068]
[1732107306841,9.92018517,237.08,237.05,10.24616544]
[1732107307241,9.92018517,237.07,237.06,2.1069]
[1732107307645,2.1063,237.13,237.05,10.24616544]
[1732107308040,31.18913942,237.13,237.05,10.24616544]
[1732107308239,18.61419998,237.12,237.05,10.24616544]
[1732107308438,18.61419998,237.11,237.05,10.24616544]
[1732107308643,9.90029029,237.1,237.05,10.24616544]
[1732107308844,9.90029029,237.09,237.07,2.1067]
[1732107309046,9.90029029,237.08,237.07,2.1067]
[1732107309347,2.1064,237.12,237.07,2.1067]
[1732107309946,20.71471223,237.12,237.07,2.1067]
[1732107310141,18.60831223,237.11,237.07,2.1067]
[1732107310442,1.1887,237.17,237.09,2.1066]
[1732107310443,9.90029029,237.1,237.09,2.1066]
[1732107310845,9.90029029,237.2,237.05,12.62616544]
[1732107311149,10.24616544,237.13,237.0,11.46266544]
[1732107311349,9.90029029,237.1,237.0,11.46266544]
[1732107311642,29.0656321,237.09,237.0,11.46266544]
[1732107311847,19.16534181,237.08,237.0,11.46266544]
[1732107312049,18.60641738,237.07,237.06,2.1069]
[1732107312249,9.90029029,237.07,237.03,10.24616544]
[1732107312444,9.90029029,237.06,237.03,10.24616544]
[1732107312645,2.1067,237.09,237.03,10.24616544]
[1732107313047,29.0613368,237.1,237.03,10.24616544]
[1732107313247,9.89298558,237.09,237.03,10.24616544]
[1732107313446,9.89298558,237.09,237.06,10.24616544]
[1732107313447,18.60043601,237.09,237.06,10.24616544]
[1732107313643,9.89298558,237.08,237.06,10.24616544]
[1732107313842,9.89298558,237.07,237.06,10.24616544]
[1732107314047,2.1063,237.13,237.08,2.1066]
[1732107314247,2.1063,237.13,237.06,10.24616544]
[1732107314443,19.16849394,237.14,237.09,10.24616544]
[1732107314651,8.70753417,237.13,237.09,10.24616544]
[1732107314844,18.59896214,237.12,237.09,10.24616544]
[1732107315059,9.89142797,237.11,237.09,10.24616544]
[1732107315253,2.1063,237.14,237.1,2.1066]
[1732107315949,29.05087592,237.14,237.09,10.24616544]
[1732107316150,18.59374669,237.13,237.11,2.1064]
[1732107316353,9.88935693,237.12,237.11,2.1064]
[1732107316846,9.88935693,237.12,237.09,10.24616544]
[1732107316847,2.1061,237.15,237.09,10.24616544]
[1732107317045,19.15675863,237.18,237.12,10.24616544]
[1732107317252,29.04611556,237.17,237.12,10.24616544]
[1732107317445,9.88935693,237.16,237.12,10.24616544]
[1732107317647,18.59159476,237.16,237.12,10.24616544]
[1732107317850,18.59159476,237.15,237.12,10.24616544]
[1732107318052,9.88935693,237.14,237.12,10.24616544]
[1732107318255,4.7543,237.21,237.09,10.24616544]
[1732107318456,28.67012351,237.2,237.06,10.24616544]
[1732107318649,28.67012351,237.19,237.06,10.24616544]
[1732107318850,18.2242735,237.18,237.09,10.24616544]
[1732107319154,18.2242735,237.17,237.09,10.24616544]
[1732107319453,6.3118,237.4,237.12,10.24616544]
[1732107319655,10.24616544,237.29,237.12,10.24616544]
[1732107319957,2.1058,237.19,237.12,10.24616544]
[1732107320454,2.1057,237.2,237.12,10.24616544]
[1732107320652,18.21837052,237.22,237.12,10.24616544]
[1732107320848,18.21837052,237.21,237.12,10.24616544]
[1732107321156,2.1058,237.19,237.15,2.1061]
[1732107321354,9.52608667,237.19,237.12,10.24616544]
[1732107321651,9.52608667,237.18,237.12,10.24616544]
[1732107321855,2.1058,237.19,237.14,2.1061]
[1732107322550,11.62566881,237.19,237.14,2.1061]
[1732107322753,11.62576881,237.18,237.14,2.1061]
[1732107323154,2.3,237.23,237.12,10.24616544]
[1732107323350,2.3,237.23,237.15,2.1061]
[1732107323351,2.1058,237.19,237.15,2.1061]
[1732107324051,9.51501776,237.19,237.12,10.24616544]
[1732107324352,2.3,237.25,237.15,10.24616544]
[1732107324655,9.51172176,237.24,237.19,2.1057]
[1732107324856,9.51172176,237.26,237.18,10.24616544]
[1732107325053,2.3,237.27,237.18,10.24616544]
[1732107325251,18.19011324,237.26,237.11,2.5781]
[1732107325455,18.19011324,237.25,237.13,10.24616544]
[1732107325651,18.19011324,237.24,237.13,10.24616544]
[1732107325856,2.1057,237.21,237.16,2.106]
[1732107326154,18.19011324,237.22,237.13,10.24616544]
[1732107326460,2.3,237.27,237.16,10.24616544]
[1732107326659,28.59688638,237.26,237.13,10.24616544]
[1732107326860,2.3,237.27,237.13,10.24616544]
[1732107326861,28.59688638,237.25,237.13,10.24616544]
[1732107327061,28.59688638,237.25,237.1,10.24616544]
[1732107327264,28.59688638,237.24,237.1,10.24616544]
[1732107327463,10.41916938,237.23,237.1,10.24616544]
[1732107327762,2.1061,237.16,237.1,10.24616544]
[1732107328061,2.3,237.19,237.11,2.1064]
[1732107328261,9.50471283,237.18,237.11,2.1064]
[1732107328561,2.3,237.19,237.1,10.24616544]
[1732107328762,9.50383174,237.18,237.1,10.24616544]
[1732107328959,2.1059,237.17,237.13,2.1062]
[1732107329163,2.3,237.19,237.1,10.24616544]
[1732107329463,2.3,237.19,237.13,10.24616544]
[1732107329762,4.4058,237.19,237.13,10.24616544]
[1732107329962,2.3,237.19,237.13,10.24616544]
[1732107330363,2.1057,237.2,237.15,2.1061]
[1732107330562,2.3,237.22,237.15,2.1061]
[1732107330764,9.50371583,237.21,237.1,10.24616544]
[1732107332162,9.50371583,237.21,237.07,2.3]
[1732107332363,8.67537461,237.2,237.07,2.3]
[1732107332558,9.50371583,237.19,237.07,2.3]
[1732107332766,8.67563678,237.18,237.07,2.3]
[1732107333067,9.50371583,237.17,237.06,10.24616544]
[1732107333267,2.1064,237.12,237.06,10.24616544]
[1732107333467,9.50371583,237.16,237.06,10.24616544]
[1732107333666,10.24616544,237.2,237.06,10.24616544]
[1732107333859,10.24616544,237.2,237.09,2.1066]
[1732107333860,2.1063,237.14,237.09,2.1066]
[1732107334061,9.51041014,237.18,237.09,2.1066]
[1732107334265,2.1062,237.14,237.09,2.1066]
[1732107334468,9.51041014,237.18,237.09,2.1066]
[1732107334865,2.1064,237.13,237.08,2.1067]
[1732107335263,8.68029485,237.17,237.08,2.1067]
[1732107335464,9.51041014,237.16,237.04,2.3]
[1732107335666,9.51041014,237.16,237.03,11.55676544]
[1732107335864,9.51041014,237.16,237.03,10.24616544]
[1732107336065,10.24616544,237.14,236.98,2.5117]
[1732107336266,10.24616544,237.11,236.97,10.24616544]
[1732107336673,2.1072,237.03,236.97,10.24616544]
[1732107336875,2.3,237.07,236.97,10.24616544]
[1732107337771,2.3,237.07,237.0,2.1074]